Cogmind - Beta 15 @@@ ROGUE MODE // 2025.10.04 @ 19:21:24 Player: Grey Result: Destroyed by as-12253 with Assembled Heavy Rifle Performance ------------- Evolutions (0) 0 Regions Visited (4) 800 Robots Destroyed (8) 40 Value Destroyed (197) 197 Prototype IDs (23) 460 Alien Tech Used (0) 0 Bonus (300) 300 TOTAL SCORE: 1797 Bonus ------- Aligned with FarCom 300 Cogmind --------- Core Integrity 0/250 Matter 285/300 Energy 100/100 System Corruption 0% Temperature Cool (0) Movement Core (750) Ox14 Location -9/Mines Parts ------- > --- POWER (1) -------- (None) > --- PROPULSION (2) --- (None) > --- UTILITY (2) ------ High-capacity Storage Unit > --- WEAPON (2) ------- Longsword +1 > --- INVENTORY (20) --- Ion Engine Ion Engine Improved Heat Sink High-capacity Storage Unit Medium Matter Pod (100) Terrain Scanner Seismic Detector Light Assault Rifle Light Assault Rifle Light Assault Rifle Flak Gun Peak State ------------ > --- POWER ------------ Ion Engine > --- PROPULSION ------- Wheel Compact Wheel > --- UTILITY ---------- High-capacity Storage Unit Structural Scanner > --- WEAPON ----------- Assault Rifle Longsword +1 > --- INVENTORY -------- Ion Engine Ion Engine Ion Engine Improved Heat Sink High-capacity Storage Unit Medium Matter Pod Terrain Scanner Seismic Detector Improved Medium Armor Plating Light Assault Rifle Light Assault Rifle Light Assault Rifle Flak Gun [Rating: 16] Favorites ----------- Power Ion Engine Engine Ion Engine Propulsion Compact Wheel Wheel Compact Wheel Utility Structural Scanner Device Structural Scanner Storage Large Storage Unit Protection Improved Medium Armor Plating Weapon Assault Rifle Ballistic Gun Assault Rifle Slashing Weapon Longsword +1 Build | -11 -10 -10 -10 -9 ------- Run | Yrd Mat Min Exi Min Slots Evolved . | . . . . . Power . | . . . . . Propulsion . | . . . . . Utility . | . . . . . Weapon . | . . . . . Parts Attached 17 | 6 1 5 2 3 Power 5 | 1 . 3 . 1 Engine 5 | 1 . 3 . 1 Core . | . . . . . Reactor . | . . . . . Propulsion 4 | 2 . 1 . 1 Treads . | . . . . . Leg . | . . . . . Wheel 4 | 2 . 1 . 1 Hover . | . . . . . Flight . | . . . . . Utility 5 | 1 1 1 1 1 Device 1 | . 1 . . . Storage 3 | 1 . 1 1 . Processor . | . . . . . Hackware . | . . . . . Protection 1 | . . . . 1 Artifact . | . . . . . Weapon 3 | 2 . . 1 . Energy Gun . | . . . . . Energy Cannon . | . . . . . Ballistic Gun 2 | 2 . . . . Ballistic Cannon . | . . . . . Launcher . | . . . . . Special Weapon . | . . . . . Impact Weapon . | . . . . . Slashing Weapon 1 | . . . 1 . Piercing Weapon . | . . . . . Special Melee Weapon . | . . . . . Unidentified Prototypes . | . . . . . Parts Lost 11 | . . 3 . 8 Power 4 | . . 2 . 2 Propulsion 4 | . . 1 . 3 Utility 2 | . . . . 2 Weapon 1 | . . . . 1 Highest Loss Streak 8 | . . 2 . 8 To Critical Strikes . | . . . . . Average Backups 8 | 1 1 5 10 12 Power 1 | 1 1 . 3 2 Propulsion . | . . . . . Utility 4 | . . 2 4 5 Weapon 2 | . . 1 2 3 Tool/Special . | . . . . . Unused Backups 8 | . . . . 8 Power 1 | . . . . 1 Propulsion . | . . . . . Utility 4 | . . . . 4 Weapon 3 | . . . . 3 Tool/Special . | . . . . . Average Slot Usage (%) 98 | . 94 98 100 98 Engine 13 | . 14 13 14 13 Wheel 27 | . 28 26 28 27 Device 13 | . 8 14 14 13 Storage 14 | . 14 14 14 14 Ballistic Gun 21 | . 28 28 17 13 Slashing Weapon 6 | . . . 10 14 Peak Build Rating 16 | 6 7 8 15 16 Average Rating 10 | 3 6 6 13 15 On Entrance 7 | . 6 7 8 15 Naked Turns . | . . . . . Heaviest Build 55 | 11 12 29 51 55 Greatest Support 26 | 26 26 26 26 26 Greatest Overweight (x) 18 | . . 1 1 18 Average Overweight (x) . | . . . 1 1 Largest Inventory Capacity 20 | 8 8 15 20 20 Average Capacity 16 | 6 8 14 17 20 Most Carried 14 | 4 3 10 11 14 Average Carried 8 | 1 1 5 10 13 Final Capacity 20 | 8 8 15 20 20 Final Carried 11 | 1 3 9 11 11 Class Distribution -------------------- 100% | Mutant Dominant Class ---------------- Mutant | -10/Materials Mutant | -10/Mines Mutant | -10/Exiles Mutant | -9/Mines Resources | -11 -10 -10 -10 -9 ----------- Run | Yrd Mat Min Exi Min Matter Collected 560 | 206 . 323 . 31 Remotely . | . . . . . Salvage Created 271 | . . 259 . 12 Parts 15 | . . 15 . . Haulers Intercepted . | . . . . . Recyclers Shooed . | . . . . . Parts Field Recycled . | . . . . . Retrieved Matter . | . . . . . Parts Self-Destructed . | . . . . . Prevented . | . . . . . Kills | -11 -10 -10 -10 -9 ------- Run | Yrd Mat Min Exi Min Combat Hostiles Destroyed 8 | . . 7 . 1 Melee 1 | . . . . 1 Guns 7 | . . 7 . . Classes Destroyed 4 | . . 3 . 1 Tunneler 1 | . . 1 . . Swarmer 2 | . . 2 . . Grunt 5 | . . 5 . . Assembled 1 | . . . . 1 Best Kill Streak 4 | . . 4 . 1 Combat Bots Only 4 | . . 4 . 1 Max Kills in Single Turn 1 | . . 1 . 1 Gunslinging . | . . . . . Exploded . | . . . . . Melee 1 | . . . . 1 Uniques/NPCs Destroyed . | . . . . . Combat | -11 -10 -10 -10 -9 -------- Run | Yrd Mat Min Exi Min Hostile Shots Fired 88 | . . 47 . 41 Missed 26 | . . 14 . 12 Hits 62 | . . 33 . 29 Melee 2 | . . . . 2 Projectile 60 | . . 33 . 27 AOE 19 | . . . . 19 Damage Taken 1127 | . . 329 . 798 Core 251 | . . 24 . 227 Absorbed by Shields . | . . . . . Core Remaining (%) 100 | 100 . . . . Volleys Fired 36 | . . 32 2 2 Largest 2 | . . 2 2 1 Hottest 40 | . . 40 40 20 Shots Fired 69 | . . 64 3 2 Gun 69 | . . 64 3 2 Cannon . | . . . . . Launcher . | . . . . . Special . | . . . . . Kinetic 69 | . . 64 3 2 Thermal . | . . . . . Explosive . | . . . . . Electromagnetic . | . . . . . Robot Hit Streak 12 | . . 12 . 1 Robot Miss Streak 3 | . . 3 . 3 Penetration Max . | . . . . . Secondary Targets 1 | . . 1 . . Max Gunslinging Chain 1 | . . 1 . . Shots Hit Robots 43 | . . 39 . 4 Core Hits 18 | . . 16 . 2 Critical Kills . | . . . . . Critical Parts Destroyed . | . . . . . Critical Strikes 1 | . . . . 1 Sever 1 | . . . . 1 Melee Attacks 3 | . . . . 3 Impact . | . . . . . Slashing 3 | . . . . 3 Piercing . | . . . . . Sneak Attacks . | . . . . . Combat Hostiles . | . . . . . Follow-up Attacks . | . . . . . Damage Inflicted 578 | . . 434 . 144 Guns 447 | . . 434 . 13 Cannons . | . . . . . Explosions . | . . . . . Melee 131 | . . . . 131 Ramming . | . . . . . Kinetic 447 | . . 434 . 13 Thermal . | . . . . . Explosive . | . . . . . Electromagnetic . | . . . . . Impact . | . . . . . Slashing 131 | . . . . 131 Piercing . | . . . . . Highest Corruption . | . . . . . Average Corruption . | . . . . . Corruption Purged . | . . . . . Corruption Blocked . | . . . . . Overload Shots . | . . . . . Overflow Damage . | . . . . . Projectiles . | . . . . . Explosions . | . . . . . Melee . | . . . . . Knockbacks . | . . . . . Impact . | . . . . . Kinetic . | . . . . . Secondary . | . . . . . Self-Inflicted Damage . | . . . . . Shots . | . . . . . Rammed . | . . . . . Targets Rammed . | . . . . . Kicked . | . . . . . Crushed . | . . . . . Highest Temperature 10 | . . 10 . 10 Average Temperature 4 | . . 3 . 10 Received Heat Transfer 172 | . . 132 . 40 Siege Activations . | . . . . . Martial Activations . | . . . . . Shielding Activations . | . . . . . Robots Disrupted . | . . . . . Combat Hostiles . | . . . . . Robots Corrupted . | . . . . . Combat Hostiles . | . . . . . Parts Fried . | . . . . . Impact Corruptions . | . . . . . Robots Melted . | . . . . . Combat Hostiles . | . . . . . Parts Melted . | . . . . . Heat Transferred . | . . . . . Parts Sabotaged . | . . . . . Parts Stolen . | . . . . . Parts Stripped . | . . . . . Power Chain Reactions . | . . . . . Alert | -11 -10 -10 -10 -9 ------- Run | Yrd Mat Min Exi Min Maximum Alert Level . | . . . . . Low Security (%) 100 | 100 100 100 . 100 Level 1 . | . . . . . Level 2 . | . . . . . Level 3 . | . . . . . Level 4 . | . . . . . Level 5 . | . . . . . High Security . | . . . . . Max Security . | . . . . . Peak Influence 74 | . . 74 . . Initial . | . . . . . Average 3 | . . 7 . . Influence Increases 145 | . . 145 . . Destroy 0b10 Robot/C 140 | . . 140 . . Destroy 0b10 Robot/NC 5 | . . 5 . . Influence Decreases 145 | . . 84 61 . Entered New Map 61 | . . . 61 . Time Decay 84 | . . 84 . . Squads Dispatched 2 | . 1 . . 1 Investigation 1 | . . . . 1 Extermination . | . . . . . Reinforcement 1 | . 1 . . . Assault . | . . . . . Garrison . | . . . . . Intercept . | . . . . . Searches Triggered . | . . . . . Construction Impeded . | . . . . . Haulers Reinforced . | . . . . . Active Scanning Responses . | . . . . . Cargo Convoy Interrupts . | . . . . . Stealth | -11 -10 -10 -10 -9 --------- Run | Yrd Mat Min Exi Min Distress Signals . | . . . . . Communications Jammed . | . . . . . Distress Signals . | . . . . . Times Spotted 25 | . 2 9 . 14 Peak Tracking Total 13 | . 2 4 . 13 Tactical Retreats 3 | . . . . 3 Traps | -11 -10 -10 -10 -9 ------- Run | Yrd Mat Min Exi Min Traps Triggered . | . . . . . Indirectly . | . . . . . Trap Hack Attempts . | . . . . . Triggered . | . . . . . Disarmed . | . . . . . Reprogrammed . | . . . . . Reused . | . . . . . Traps Extracted . | . . . . . Installed . | . . . . . Triggered . | . . . . . Machines | -11 -10 -10 -10 -9 ---------- Run | Yrd Mat Min Exi Min Machines Disabled 1 | . . . 1 . Max in Single Turn 1 | . . . 1 . Machines Repaired . | . . . . . Machines Dismantled . | . . . . . Machines Sabotaged . | . . . . . Overloaded Fab Kills . | . . . . . Hacking | -11 -10 -10 -10 -9 --------- Run | Yrd Mat Min Exi Min Machines Accessed 2 | . . . 1 1 Terminals . | . . . . . Fabricators . | . . . . . Repair Stations . | . . . . . Recycling Units . | . . . . . Scanalyzers . | . . . . . Garrison Access . | . . . . . Total Hacks 2 | . . . 1 1 Successful 2 | . . . 1 1 Failed . | . . . . . Catastrophic . | . . . . . Database Lockouts . | . . . . . Manual 2 | . . . 2 . Terminals . | . . . . . Fabricators . | . . . . . Repair Stations . | . . . . . Recycling Units . | . . . . . Scanalyzers . | . . . . . Garrison Access . | . . . . . Terminal Hacks 2 | . . . 1 1 Open Door 1 | . . . . 1 Proto ID Catalog 1 | . . . 1 . Fabricator Hacks . | . . . . . Repair Station Hacks . | . . . . . Recycling Unit Hacks . | . . . . . Scanalyzer . | . . . . . Garrison Access Hacks . | . . . . . Unauthorized Hacks . | . . . . . Terminals . | . . . . . Fabricators . | . . . . . Repair Stations . | . . . . . Recycling Units . | . . . . . Scanalyzers . | . . . . . Garrison Access . | . . . . . Data Cores Recovered . | . . . . . Used . | . . . . . Hacking Detections . | . . . . . Full Trace Events . | . . . . . Feedback Events . | . . . . . Feedback Blocked . | . . . . . Robot Schematics Acquired . | . . . . . Robots Built . | . . . . . Authchips . | . . . . . Time . | . . . . . Total Robot Build Rating . | . . . . . Part Schematics Acquired . | . . . . . Parts Built . | . . . . . Authchips . | . . . . . Time . | . . . . . Total Part Build Rating . | . . . . . Parts Repaired . | . . . . . Time . | . . . . . Parts Recycled . | . . . . . Recycled Matter . | . . . . . Retrieved Matter . | . . . . . Retrieved Components . | . . . . . Parts Scanalyzed . | . . . . . Part Schematics Acquired . | . . . . . Parts Damaged . | . . . . . Bothacking | -11 -10 -10 -10 -9 ------------ Run | Yrd Mat Min Exi Min Used RIF Installer . | . . . . . Robots Hacked . | . . . . . Non-combat . | . . . . . Combat . | . . . . . Robot Hacks Applied . | . . . . . Relay Couplers Released . | . . . . . Fabnet Peak Effective % . | . . . . . Robots Rewired . | . . . . . Allies Hacked . | . . . . . Hacks Repelled . | . . . . . Allies | -11 -10 -10 -10 -9 -------- Run | Yrd Mat Min Exi Min Total Allies . | . . . . . Largest Group . | . . . . . Highest-Rated Group . | . . . . . Highest-Rated Ally . | . . . . . Total Orders . | . . . . . Ally Attacks . | . . . . . Total Damage . | . . . . . Kills . | . . . . . Allies Corrupted . | . . . . . Allies Melted . | . . . . . Intel | -11 -10 -10 -10 -9 ------- Run | Yrd Mat Min Exi Min Active Infowar (turns) 2173 | . 52 966 508 647 Structural 2173 | . 52 966 508 647 Robot Analysis Total . | . . . . . Derelict Logs Recovered 4 | . . 2 . 2 Drone Launches . | . . . . . Drone Recoveries . | . . . . . Exploration | -11 -10 -10 -10 -9 ------------- Run | Yrd Mat Min Exi Min Turns Passed 2268 | 44 69 966 508 681 Spaces Moved 1216 | 36 65 384 474 257 Core 8 | 6 . . . 2 Treads . | . . . . . Legs . | . . . . . Wheels 1208 | 30 65 384 474 255 Hover . | . . . . . Flight . | . . . . . Fastest Speed 50 | 50 90 90 105 105 Average Speed 104 | 86 90 103 105 112 Slowest Speed 950 | 100 90 115 105 950 Overloaded Moves . | . . . . . Propulsion Burnouts . | . . . . . Robots Hopped . | . . . . . Potential Cave-ins . | . . . . . Cave-ins Triggered . | . . . . . Exploration Rate (%) 52 | 3 18 92 89 58 Regions Visited 4 Branch Regions 3 Pre-discovered Areas 2 | . . . . 2 Known Exits Taken . | . . . . . Unknown Exits Taken 4 | 1 1 1 1 . Scrap Searched 1 | . . 1 . . Spaces Dug . | . . . . . Terrain Destroyed . | . . . . . Melee . | . . . . . Projectile . | . . . . . AOE . | . . . . . Terrain Rammed . | . . . . . Walls Destroyed . | . . . . . Machines Disabled . | . . . . . Actions | -11 -10 -10 -10 -9 --------- Run | Yrd Mat Min Exi Min Total 2145 | 48 75 893 481 648 Wait 847 | . 7 460 . 380 Move 1212 | 35 64 383 473 257 Hop . | . . . . . Pick Up 27 | 7 3 11 3 3 Fast Attach . | . . . . . Attach 13 | 6 1 3 . 3 Detach . | . . . . . Swap 4 | . . 2 2 . Drop 3 | . . 2 1 . Fire 36 | . . 32 2 2 Melee 3 | . . . . 3 Ram . | . . . . . Kick . | . . . . . Crush . | . . . . . Escape Stasis . | . . . . . Rewire . | . . . . . Trap . | . . . . . Miscellaneous . | . . . . . Route ------- -11/Scrapyard -10/Materials -10/Mines (discovered 3 exits: [*Mat x2] / *Exi) -10/Exiles -9/Mines History --------- Turn | Location | Event 15 | -11/Scrapyard | Discovered new exit (range 16) 45 | -11/Scrapyard | Entered Materials 99 | -10/Materials | Discovered new exit (range 9) 114 | -10/Materials | Entered Mines 137 | -10/Mines | Met a Derelict bent on vengeance 218 | -10/Mines | Discovered new exit (range 12) 313 | -10/Mines | Build established: Mutant 336 | -10/Mines | Learned Materials terminal intel 338 | -10/Mines | Discovered new exit (range 15) 436 | -10/Mines | Learned 4 Materials zone layouts 492 | -10/Mines | Deemed a non-threat by the Exiles lab entrance 492 | -10/Mines | Discovered new exit (range 6) 526 | -10/Mines | Excavation squad dispatched 526 | -10/Mines | A large section of the Mines collapsed 776 | -10/Mines | Excavation squad dispatched 1080 | -10/Mines | Entered Exiles 1113 | -10/Exiles | Met 8R-AWN 1131 | -10/Exiles | Met EX-HEX 1162 | -10/Exiles | Met EX-BIN 1175 | -10/Exiles | Aligned with FarCom system 1176 | -10/Exiles | Given EX-Vault access code 1200 | -10/Exiles | Opened EX-Vault 1208 | -10/Exiles | Found Longsword +1 1235 | -10/Exiles | Warned to stay clear of 0b10 Research branches 1265 | -10/Exiles | Met EX-DEC 1332 | -10/Exiles | Discovered new exit (range 11) 1445 | -10/Exiles | Visited The Gauntlet 1588 | -10/Exiles | Left Exiles lab with Longsword +1 1588 | -10/Exiles | Entered Mines 1613 | -9/Mines | Learned location of Zion (-7) 1633 | -9/Mines | Met a Derelict shopkeep closing up shop 1986 | -9/Mines | Learned location of Storage (-8) 2066 | -9/Mines | Assembled infested the area 2071 | -9/Mines | Assisted by a Guerilla fighting off Assembled 2244 | -9/Mines | Core integrity fell below 50% 2255 | -9/Mines | Core integrity fell below 20% 2269 | -9/Mines | Destroyed by as-12253 with Assembled Heavy Rifle Last Messages --------------- 02114_ as-28283 destroyed. 02235_ Structural Scanner destroyed. 02235_ Wheel destroyed. 02237_ Ion Engine destroyed. 02241_ Com. Wheel destroyed. 02241_ Assault Rifle destroyed. 02242_ YI-UF0 mumbles something. 02252_ The unstable cave ceiling collapses. 02252_ YI-UF0 Carbon-fiber Leg severed. 02252_ as-97605 destroyed. 02253_ Wheel destroyed. 02254_ The unstable cave ceiling collapses. 02254_ YI-UF0: "KAPOW!" 02254_ YI-UF0 destroyed. 02254_ as-00568 destroyed. 02256_ The unstable cave ceiling collapses. 02258_ Imp. Medium Armor Plating destroyed. 02259_ The unstable cave ceiling collapses. 02263_ Knocked back. 02265_ Ion Engine destroyed. Map ----- +----------------------------------------------------+ | ???### ### ####### ##????? | | ???######## ##### ###????? | | ????####### ##### ######????? | | ?????????## ##### ######?????? | | ?????????## ######## ####????????? | | ?????????## #### ####### #####?????????? | | ?????????## #### ##???## #####??????????? | | ?????????## ##???### ####????????????? | | ?????????## ### ###???### ####?????????????? | | ?????????## ### ###???## # ###??????????????? | | ????????### ### ######### ####?????????????? | | ????????### ### ########## ###?????????????? | | ????????## ## #### ## # ##?????????????? | | ????????## ### ## ###?????????????? | | ????????## ###### ##?????????????? | | ????????### ####### ####?????????????? | | ????????### ##??#### ####?????????????? | | ?????????## ###???#### ####?????????????? | | ????????### ###????### ####????????????? | | ??######### ###??????## #####??????????? | | ??######## ############ ######??????? # | | ??##"!### ### # # #####?###?? # | | ??##"! !#X # # % ## ### # ? | | ??##" % ## # ?? | | ??##" *a* # # # # | | ??##"] [# @a%! [ # % # | | ??##"[### ## % % # | | ??####### ## | ! *!! | | ??####### #% # % =%%%=% | | ????##### ## # ! ==!= | | ????### ## # # | | ????## # #### # # ? | | ????## ######### %# ## | | ????## ###??###### *# # # ##? | | ????## # ##???????### # # # ? | | ???### ###### ##????????### # # ##### ? | | ??#### ##??## ##?????????## ### ### ? | | ??### ###### ##?????????##$##### ###????? ? | | ?### ##### ##?????????## ##### ## ??????? | | ?## ##### ##???s?????## ##?????????????? | | ?## ##########???s?????## ##?????????????? | | ?### #########???s??????? ##?????????????? | | ?#### ##??????????????????????????????????? | | ??#### ##??????????????????????????????????? | | ???#### ###??????????????????????????????????? | | ????########??????????????????????????????????? | | ??????#####???????????????????????????????????? | | | | | | | +----------------------------------------------------+ Best States ------------- Heat Dissipation 25 Energy Generation 10 Energy Capacity 250 Matter Stores 300 Matter Capacity 300 Sight Range 16 Terrain Scan Density 10 Armor Coverage 225 Evasion (%) 42 Item Schematics ----------------- None Robot Schematics ------------------ None Fabricated ------------ Nothing Repaired ---------- Nothing Alien Tech Used ----------------- None Achievements -------------- None Challenges ------------ None Game ------ Seed PitchforkShockShotgun Manual? 0 Play Time 00:20:00 Cumulative 15.6 hours Start 2025.10.04 @ 19:00:12 End 2025.10.04 @ 19:21:24 Sessions 1 Manual Loads 0 Difficulty Rogue Special Mode None Game No. 16 Rogue 16 Adventurer 0 Explorer 0 Win Type - Total 0 Types 0/0/0/0/0/0/0/0/0/0 Lore% 11 Gallery% 16 Achievement% 17 Wizard Run 0 Options --------- Layout 1 ASCII 0 Keyboard 0 Movement Mouse Keybinds 0 Fullscreen 1 Font 32/SmallcapsGlow Map View 50x35 Zoom Use 0% Tactical HUD 1 Map Filters NONE Filters NONE Steam 1 RUN: 15af1ff1-620a-48fd-93f0-c2e96b960900